[Event "III Menorca Open-A 2024"]
[Site "Ciutadella Menorca"]
[Date "2024.04.05"]
[Round "6.3"]
[White "Warmerdam, Max"]
[Black "Klimkowski, Jan"]
[Result "1/2-1/2"]
[ECO "A28"]
[WhiteElo "2628"]
[BlackElo "2505"]
[Annotator "TA"]
[PlyCount "42"]
[EventDate "2024.04.02"]
[EventType "swiss"]
[EventCountry "ESP"]
[SourceTitle "playchess.com"]
[Source "ChessBase"]
[SourceQuality "1"]
[TimeControl "5400+30"]

{[%evp 10,42,1,0,0,0,0,0,0,0,4,0,12,-9,-4,-14,0,-18,0,0,0,0,-1,-51,-44,-49,-42,-44,-44,-43,0,-46,0,-34,0]} 1. c4 {[%emt 0:03:24]} Nf6 {[%emt 0:00:10][%cal Bg8f6,Bf6d5,Bd5b6][%mdl 32]} 2. Nc3 {[%emt 0:00:06]} e5 {[%emt 0:00:07]} 3. Nf3 {[%emt 0:00:08]} Nc6 {[%emt 0:00:10]} 4. d3 {[%emt 0:00:11]} d5 {[%emt 0:00:23]} 5. cxd5 {[%emt 0:00:06]} Nxd5 {[%emt 0:00:05]} 6. e4 {[%emt 0:00:10]} Nb6 {[%emt 0:00:34]} 7. Be2 {[%emt 0:00:37]} Be7 {[%emt 0:00:20]} 8. Be3 {[%emt 0:00:08]} Be6 {[%emt 0:02:12] The position is equal.} 9. O-O {[%emt 0:01:47]} O-O {[%emt 0:00:16]} 10. Rc1 {[%emt 0:11:21]} Qd7 {[%emt 0:09:58]} 11. Re1 {[%emt 0:19:37]} Rfd8 {[%emt 0:03:33]} 12. Bf1 {[%emt 0:10:53]} Rac8 {[%emt 0:09:48]} 13. a3 {[%emt 0:02:22]} Bg4 {[%emt 0:02:20]} 14. h3 {[%emt 0:12:50]} Bxf3 {[%emt 0:00:56]} 15. Qxf3 {[%emt 0:00:05]} Nd4 {[%emt 0:02:05]} 16. Qg4 {[%emt 0:01:22]} (16. Qd1 $11) 16... Qxg4 $15 {[%emt 0:04:33]} 17. hxg4 {[%emt 0:00:37]} c6 {[%emt 0:01:06]} 18. Red1 {[%emt 0:12:36]} Nb3 {[%emt 0:05:29] A dynamic duo of knights.} 19. Rc2 {[%emt 0:00:38]} Nd4 {[%emt 0:02:08]} 20. Rcc1 {[%emt 0:00:32]} Nb3 {[%emt 0:00:06]} 21. Rc2 {[%emt 0:00:04]} Nd4 {[%emt 0:04:31] Weighted Error Value: White=0.07 (flawless) /Black=0.08 (flawless) .  Mistake:       	White=1     	---        Inaccurate:     	---       	Black=1      OK:         	White=9     	Black=7} 1/2-1/2

[Event "III Menorca Open-A 2024"]
[Site "Ciutadella Menorca"]
[Date "2024.04.05"]
[Round "6.4"]
[White "Erigaisi Arjun"]
[Black "Raja Rithvik R"]
[Result "1-0"]
[ECO "C54"]
[WhiteElo "2748"]
[BlackElo "2532"]
[Annotator "TA"]
[PlyCount "95"]
[EventDate "2024.04.02"]
[EventType "swiss"]
[EventCountry "ESP"]
[SourceTitle "playchess.com"]
[Source "ChessBase"]
[SourceQuality "1"]
[TimeControl "5400+30"]

{[%evp 22,95,64,77,79,79,79,80,87,54,65,12,16,14,10,16,111,110,118,101,129,128,128,127,123,122,131,126,124,119,135,119,119,119,134,124,124,115,178,178,175,185,229,246,215,162,186,178,189,137,246,267,418,391,361,144,169,169,206,167,837,879,926,934,993,922,3043,3342,2957,2142,2610,1804,2427,1813,29985,29986]} 1. e4 {[%emt 0:01:37]} e5 {[%emt 0:00:23]} 2. Nf3 {[%emt 0:00:06]} Nc6 {[%emt 0:00:04]} 3. Bc4 {[%emt 0:00:05]} Bc5 {[%emt 0:00:27]} 4. c3 {[%emt 0:00:07]} Nf6 {[%emt 0:00:10]} 5. d3 {[%emt 0:00:05]} O-O {[%emt 0:00:12]} 6. O-O {[%emt 0:00:06]} h6 {[%emt 0:00:11]} 7. b4 {[%emt 0:00:19]} Be7 {[%emt 0:00:04] C54: Giuoco Piano: 4 c3 Nf6, main lines with 5 d4 and 5 d3.} 8. Re1 {[%emt 0:01:01]} a6 {[%emt 0:00:05]} 9. a4 {[%emt 0:00:47]} d5 {[%emt 0:00:04]} 10. exd5 {[%emt 0:02:02]} Nxd5 {[%emt 0:00:05]} 11. Nbd2 $146 {[%emt 0:02:02]} ({Predecessor:} 11. Nxe5 Nxe5 12. Rxe5 c6 13. Re1 Be6 14. a5 Bf6 15. Qb3 Re8 16. Bd2 Bg5 17. Qc2 {1-0 Squires,M (2109)-Sallwey,R (1883) VW-Cup4 Gr09 email 2011}) 11... Bf5 {[%emt 0:18:09]} 12. Nxe5 {[%emt 0:16:36]} Nxe5 {[%emt 0:23:07]} (12... Nxc3 13. Qb3 Nxe5 (13... Bxb4 $2 14. Bxf7+ Kh7 15. Nxc6 $18) 14. Rxe5 $16) 13. Rxe5 {[%emt 0:00:07]} Be6 {[%emt 0:00:02]} (13... Nxc3 14. Qc2) 14. Ne4 {[%emt 0:06:33]} c6 {[%emt 0:05:35]} 15. a5 {[%emt 0:24:25]} (15. Bd2 {with more complications.} Qc7 16. Rxe6 fxe6 17. Qg4) 15... Qd7 {[%emt 0:15:31]} 16. Qe1 {[%emt 0:01:39]} ({White should play} 16. Bxd5 $1 $14 Bxd5 17. Be3) 16... Rae8 {[%emt 0:03:15]} 17. Nc5 {[%emt 0:01:18]} Bxc5 {[%emt 0:00:07]} 18. bxc5 {[%emt 0:00:05]} Bf5 {[%emt 0:00:07]} (18... Nc7 $11 {keeps the balance.} 19. Bxe6 Qxd3) 19. Bd2 $16 {[%emt 0:01:19]} Rxe5 {[%emt 0:02:46]} 20. Qxe5 {[%emt 0:00:06]} Re8 {[%emt 0:00:08]} 21. Qg3 {[%emt 0:06:55]} Re6 {[%emt 0:00:24]} 22. f3 {[%emt 0:01:15]} Re2 {[%emt 0:07:02]} 23. Rd1 {[%emt 0:08:23]} Qe7 {[%emt 0:07:09]} 24. d4 {[%emt 0:01:31]} (24. Bxh6 $6 Bg6 25. Bxd5 cxd5 $11) 24... Re6 {[%emt 0:00:45]} 25. h4 {[%emt 0:03:40]} Qd8 {[%emt 0:05:12]} 26. Re1 {[%emt 0:04:25]} Kh7 {[%emt 0:01:57]} 27. Ra1 {[%emt 0:01:59]} Qe8 {[%emt 0:04:45]} 28. Qf2 {[%emt 0:02:11]} h5 {[%emt 0:00:47]} 29. Re1 {[%emt 0:00:24]} Qd8 {[%emt 0:00:51]} (29... f6 $16 30. Rxe6 Qxe6) 30. Rxe6 $18 {[%emt 0:00:30]} fxe6 {[%emt 0:00:22]} 31. Bf1 $1 {[%emt 0:00:20]} Ne7 {[%emt 0:01:15]} 32. Bg5 {[%emt 0:01:09]} Qc7 {[%emt 0:00:04]} 33. Qb2 {[%emt 0:03:42]} Ng6 {[%emt 0:00:04]} 34. Qb6 {[%emt 0:00:59]} Qd7 {[%emt 0:01:21]} 35. Qa7 {[%emt 0:04:43]} (35. Qd8 $18 Qxd8 36. Bxd8) 35... e5 {[%emt 0:00:55] [#]} (35... Qc8 $16 {was called for.} 36. Qb6 Qb8) 36. Qb8 $1 $18 {[%emt 0:00:22]} exd4 {[%emt 0:00:18]} (36... Qf7 {is a better defense.} 37. Kh2 (37. dxe5 Qd5 $18) 37... exd4) 37. Bc4 $18 {[%emt 0:00:04]} Ne7 {[%emt 0:01:55] [#]} 38. Qe5 $2 {[%emt 0:01:27]} (38. Bxe7 $1 $18 {is the precise move to win. White threatens Bg8+ and mate.} Qxe7 39. Bg8+ (39. cxd4 $2 {too greedy.} Qe1+ 40. Bf1 Bd3 $19) 39... Kh6 40. Qf4+ (40. cxd4 Qe1+ 41. Kh2 Qxh4+ 42. Kg1 Qxd4+ 43. Kh1 Qxc5 $17) 40... g5 41. Qxf5 Qe1+ 42. Kh2 Qxh4+ 43. Qh3 Qf4+ (43... Qxh3+ $2 44. Kxh3 d3 45. Kg3 $18) 44. Qg3 dxc3 45. Bb3) 38... Ng6 {[%emt 0:01:18]} 39. Qxd4 {[%emt 0:00:05]} Qc7 {[%emt 0:00:36]} 40. Kf2 {[%emt 0:03:14]} ({Don't do} 40. Qd8 Qxd8 41. Bxd8 Nf4 $16) 40... Qxa5 $2 {[%emt 0:01:52]} (40... Qb8 41. Qd6 Qxd6 42. cxd6 Ne5) 41. g4 $18 {[%emt 0:00:05]} hxg4 {[%emt 0:00:43]} 42. fxg4 {[%emt 0:00:04]} Bb1 {[%emt 0:00:32]} 43. h5 {[%emt 0:00:30]} Nf8 {[%emt 0:00:03]} 44. Be7 {[%emt 0:00:46]} Qc7 {[%emt 0:00:48]} 45. Bxf8 {[%emt 0:00:48]} Qh2+ {[%emt 0:00:05]} 46. Ke1 {[%emt 0:03:34]} Qh4+ {[%emt 0:00:40]} 47. Kd1 {[%emt 0:00:00]} Qh1+ {[%emt 0:00:12]} 48. Kd2 {[%emt 0:00:00]} 1-0

[Event "III Menorca Open-A 2024"]
[Site "Ciutadella Menorca"]
[Date "2024.04.05"]
[Round "6.5"]
[White "Fedoseev, Vladimir"]
[Black "Sosa, Tomas"]
[Result "1-0"]
[ECO "C45"]
[WhiteElo "2690"]
[BlackElo "2562"]
[Annotator "TA"]
[PlyCount "77"]
[EventDate "2024.04.02"]
[EventType "swiss"]
[EventCountry "ESP"]
[SourceTitle "playchess.com"]
[Source "ChessBase"]
[SourceQuality "1"]
[TimeControl "5400+30"]

{[%evp 12,77,15,22,34,15,29,5,8,0,0,-8,6,-35,4,6,6,0,12,14,6,0,21,14,39,42,39,4,20,0,6,13,14,0,0,0,29,-23,42,40,47,47,38,0,39,43,36,12,36,0,120,113,159,149,197,197,171,87,526,520,606,610,1032,849,1041,1034,1104,1088]} 1. e4 {[%emt 0:00:19]} e5 {[%emt 0:00:13]} 2. Nf3 {[%emt 0:00:01][%cal Bg1f3,Bf3d4,Bd4b3][%mdl 32]} Nc6 {[%emt 0:00:09]} 3. d4 {[%emt 0:00:06]} exd4 {[%emt 0:00:06]} 4. Nxd4 {[%emt 0:00:06]} Bc5 {[%emt 0:01:17]} 5. Nb3 {[%emt 0:00:19]} Bb6 {[%emt 0:00:06]} 6. Qe2 {[%emt 0:01:06]} d6 {[%emt 0:03:14]} 7. Nc3 {[%emt 0:02:35]} Nf6 {[%emt 0:04:13]} 8. Bg5 {[%emt 0:07:00]} h6 {[%emt 0:00:59]} 9. Bh4 {[%emt 0:01:35]} g5 {[%emt 0:05:23] The position is equal.} 10. Bg3 {[%emt 0:00:11]} Qe7 {[%emt 0:00:12]} 11. O-O-O {[%emt 0:09:11]} Be6 {[%emt 0:03:28]} 12. Qd3 {[%emt 0:05:43]} Ne5 {[%emt 0:06:45]} 13. Qd2 {[%emt 0:01:30]} O-O-O {[%emt 0:05:54]} 14. f3 {[%emt 0:03:01]} Kb8 {[%emt 0:13:31]} 15. Kb1 {[%emt 0:08:18]} Ng6 {[%emt 0:02:54]} 16. Re1 {[%emt 0:05:39]} (16. Bd3 {is interesting.} d5 17. exd5 Nxd5 18. Bxg6 fxg6 19. Nxd5 Rxd5 20. Qc3) 16... Nh5 {[%emt 0:18:15]} 17. Bf2 {[%emt 0:00:42]} Qf6 {[%emt 0:01:34]} 18. Bxb6 {[%emt 0:07:20]} axb6 {[%emt 0:00:33]} 19. a4 {[%emt 0:04:53]} Qf4 {[%emt 0:01:42]} 20. Qf2 {[%emt 0:05:11]} Qe5 {[%emt 0:05:22]} 21. Bb5 {[%emt 0:03:07]} Nf6 {[%emt 0:01:29]} (21... Bxb3 $5 22. cxb3 Nhf4 $11) 22. g3 {[%emt 0:03:27]} Bxb3 {[%emt 0:07:53]} 23. cxb3 {[%emt 0:00:09]} d5 {[%emt 0:00:52]} 24. Rhf1 {[%emt 0:04:09]} (24. exd5 $142 Qf5+ 25. Qc2 Qxc2+ 26. Kxc2) 24... dxe4 {[%emt 0:02:37]} (24... d4 $11 25. Ne2 c6) 25. fxe4 $14 {[%emt 0:01:48]} Rd6 {[%emt 0:03:19]} 26. Bc4 {[%emt 0:03:14]} Rhd8 {[%emt 0:08:15]} 27. Qf3 {[%emt 0:07:32][%cal Oc3b5] Threatens to win with Nb5!} Nd7 {[%emt 0:00:41][%cal Bf6d7,Bd7c5,Bc5e4][%mdl 32]} 28. Bxf7 {[%emt 0:03:11]} Ne7 {[%emt 0:00:13]} 29. Bc4 {[%emt 0:03:17]} Nc5 {[%emt 0:00:45]} 30. Nd5 {[%emt 0:00:49] Strongly threatening Nxe7.} c6 {[%emt 0:02:13]} (30... Nc6 $11) 31. Qc3 {[%emt 0:03:29]} Ng6 {[%emt 0:00:05] [#]} ({Better is} 31... Re6) 32. Rf5 $1 $36 {[%emt 0:00:40][%mdl 2048] Black is under strong pressure.} Qe8 {[%emt 0:01:23]} (32... Nxe4 $16 33. Rxe5 Nxc3+ 34. Nxc3 Nxe5 35. Rxe5 Rf6) 33. Nxb6 $18 {[%emt 0:02:08]} Nxe4 {[%emt 0:00:29]} 34. Qc1 {[%emt 0:00:07]} (34. Qe3 $18) 34... Ka7 $2 {[%emt 0:00:43][%mdl 8192] Black cannot hold the game after this.} (34... Rd4 $16) 35. Bf7 {[%emt 0:00:35] White is clearly winning.} ({Not} 35. Nc8+ Rxc8 36. Bf7 (36. Qe3+ $2 Kb8 $19) 36... Qd7 37. Qe3+ c5 38. Qxe4 Ne7 $16) 35... Qe7 {[%emt 0:00:33]} 36. Nc4 {[%emt 0:00:34]} Rd2 {[%emt 0:00:28]} 37. Nxd2 {[%emt 0:00:43]} Rxd2 {[%emt 0:00:29]} 38. Bxg6 {[%emt 0:00:39]} Qb4 {[%emt 0:00:14] Inhibits Ra5+.} 39. Rf3 {[%emt 0:01:18] Weighted Error Value: White=0.15 (very precise) /Black=0.47.  Loses game:     	---       	Black=1      Mistake:       	White=2     	Black=4      Inaccurate:     	White=4     	Black=4      OK:         	White=10    	Black=9      Best:        	White=2     	Black=1} 1-0

[Event "III Menorca Open-A 2024"]
[Site "Ciutadella Menorca"]
[Date "2024.04.05"]
[Round "6.6"]
[White "Van Foreest, Jorden"]
[Black "Pranav Anand"]
[Result "0-1"]
[ECO "D35"]
[WhiteElo "2672"]
[BlackElo "2519"]
[Annotator "TA"]
[PlyCount "136"]
[EventDate "2024.04.02"]
[EventType "swiss"]
[EventCountry "ESP"]
[SourceTitle "playchess.com"]
[Source "ChessBase"]
[SourceQuality "1"]
[TimeControl "5400+30"]

{[%evp 66,136,-5,-7,-9,-10,0,-4,0,-16,-17,-16,-19,-25,-17,-27,-13,-4,-4,-5,-4,-9,-9,-11,-7,-65,-53,-163,-127,-163,-131,-122,-123,-110,-112,-96,-126,-107,-68,-212,-220,-354,-356,-324,-343,-447,-434,-459,-444,-395,-204,-204,-73,-72,-71,-90,-63,-187,-18,-16,-15,-20,-27,-32,8,8,8,-31,-36,-120,-142,-1829,-1828]} 1. c4 {[%emt 0:01:28]} e6 {[%emt 0:00:21]} 2. Nc3 {[%emt 0:00:14]} d5 {[%emt 0:00:07]} 3. d4 {[%emt 0:00:14]} Nf6 {[%emt 0:00:29]} 4. cxd5 {[%emt 0:00:21]} exd5 {[%emt 0:00:07]} 5. Bg5 {[%emt 0:00:13]} c6 {[%emt 0:00:18]} 6. e3 {[%emt 0:00:54]} h6 {[%emt 0:00:12]} 7. Bh4 {[%emt 0:00:25]} Be7 {[%emt 0:00:13]} 8. Bd3 {[%emt 0:00:44]} O-O {[%emt 0:00:16]} 9. Nge2 {[%emt 0:01:13]} Re8 {[%emt 0:00:28]} 10. f3 {[%emt 0:01:55]} c5 {[%emt 0:01:26]} 11. O-O {[%emt 0:01:50]} Nc6 {[%emt 0:05:56]} 12. Bf2 {[%emt 0:02:28]} a6 {[%emt 0:07:56]} 13. Rc1 {[%emt 0:03:29]} cxd4 {[%emt 0:01:58]} 14. exd4 {[%emt 0:00:15]} Bd7 {[%emt 0:00:18]} 15. Qd2 {[%emt 0:04:50]} Na5 {[%emt 0:06:50]} 16. Bb1 {[%emt 0:15:53]} Nc4 {[%emt 0:10:41]} 17. Qc2 {[%emt 0:04:50]} g6 {[%emt 0:01:25]} 18. b3 {[%emt 0:11:42]} Na3 {[%emt 0:04:02]} 19. Qd2 {[%emt 0:00:04]} Nxb1 {[%emt 0:00:56]} 20. Nxb1 {[%emt 0:00:06]} Kh7 {[%emt 0:06:52]} 21. Nf4 {[%emt 0:00:30]} a5 {[%emt 0:09:01]} 22. Nd3 {[%emt 0:06:23]} a4 {[%emt 0:03:44]} 23. Nc3 {[%emt 0:02:59]} axb3 {[%emt 0:00:44]} 24. axb3 {[%emt 0:00:04]} Rc8 {[%emt 0:02:44]} 25. Rfe1 {[%emt 0:08:14]} Bf5 {[%emt 0:01:35]} 26. Ne5 {[%emt 0:00:51]} Be6 {[%emt 0:04:11]} 27. Na4 {[%emt 0:05:04]} Rxc1 {[%emt 0:08:00]} 28. Rxc1 {[%emt 0:00:12]} Nd7 {[%emt 0:00:12]} 29. Nd3 {[%emt 0:04:17]} Bf5 {[%emt 0:01:55]} 30. Nf4 {[%emt 0:01:45]} Bg5 {[%emt 0:01:41]} 31. Nc3 {[%emt 0:02:30]} Nb6 {[%emt 0:05:10]} 32. h4 {[%emt 0:12:36]} Bxh4 {[%emt 0:01:07]} 33. Bxh4 {[%emt 0:00:04]} Qxh4 {[%emt 0:00:06]} 34. Ncxd5 {[%emt 0:00:05]} Nxd5 {[%emt 0:02:08]} 35. Nxd5 {[%emt 0:00:02]} Rd8 {[%emt 0:00:52]} 36. Nf4 $1 {[%emt 0:02:48]} Qf6 {[%emt 0:03:47]} 37. Ne2 {[%emt 0:00:08]} Be6 {[%emt 0:00:27]} 38. Qe3 {[%emt 0:00:35]} Rd7 {[%emt 0:01:35]} 39. Rc5 {[%emt 0:00:51]} Qh4 {[%emt 0:01:16]} 40. Rc1 {[%emt 0:02:37]} (40. g3 {simplifies} Qd8 41. Nf4 Rxd4 42. Nxe6 fxe6 43. Qc3) 40... Re7 {[%emt 0:00:42]} 41. b4 {[%emt 0:01:12]} Bc4 {[%emt 0:02:27]} 42. Qf4 {[%emt 0:00:02]} Qxf4 {[%emt 0:00:04]} 43. Nxf4 {[%emt 0:00:02]} b5 {[%emt 0:00:06]} 44. Rd1 $1 {[%emt 0:00:01]} Kg7 {[%emt 0:00:27]} 45. Kf2 {[%emt 0:00:38]} (45. d5 $11) 45... Kf6 $1 $15 {[%emt 0:00:45]} 46. Ra1 {[%emt 0:00:14]} (46. Nd3 $15) 46... Kf5 $19 {[%emt 0:00:26]} 47. Kg3 {[%emt 0:00:45]} h5 {[%emt 0:00:01]} 48. Nh3 {[%emt 0:00:46]} Rd7 {[%emt 0:08:26]} 49. Rd1 {[%emt 0:00:14]} g5 {[%emt 0:00:00]} 50. Nf2 {[%emt 0:01:39]} h4+ {[%emt 0:00:00]} 51. Kh2 {[%emt 0:00:04]} Kf4 {[%emt 0:00:00]} 52. Ng4 {[%emt 0:04:16]} ({Better is} 52. Nh3+ $15 Ke3 (52... Kf5 53. Rd2 $17) 53. Nxg5) 52... Rd6 $1 $19 {[%emt 0:00:00]} 53. Kg1 {[%emt 0:00:22]} (53. Nf2 {might work better.}) 53... f5 $19 {[%emt 0:00:00]} 54. Ne5 {[%emt 0:00:01]} Ke3 {[%emt 0:00:00]} 55. d5 {[%emt 0:00:38]} Be2 {[%emt 0:00:00]} (55... Bxd5 56. Nf7 Rd7 (56... Bxf7 57. Rxd6 Bc4 58. Kh2 $18) 57. Nxg5 $11) 56. Nf7 {[%emt 0:01:02] [#]} Rd7 $1 {[%emt 0:00:00]} (56... Rf6 $2 57. d6 Rxf7 (57... Bxd1 $2 58. d7 $18) 58. d7 $18) 57. Ne5 {[%emt 0:00:03]} Rd8 {[%emt 0:00:00]} (57... Bxd1 $142 58. Nxd7 Kd4) 58. Nc6 $19 {[%emt 0:00:46] [#]} Rd6 {[%emt 0:00:00]} (58... Ra8 $1 $19 59. Rb1 Ra2) 59. Ne7 $17 {[%emt 0:00:01]} Bd3 {[%emt 0:00:39]} (59... Bxd1 60. Nxf5+ Kf4 61. Nxd6 $16) 60. Re1+ {[%emt 0:01:06]} Kd4 {[%emt 0:00:01]} 61. Kf2 {[%emt 0:00:10]} ({White should play} 61. Rc1 $1 $15) 61... Kc3 $2 {[%emt 0:00:32]} (61... g4 $19 {White must now prevent ...g3+.} 62. Re6 g3+ 63. Kg1 Rxe6 64. dxe6 f4 65. Nc6+ Kd5) 62. Rc1+ $1 $11 {[%emt 0:00:54]} Kxb4 {[%emt 0:01:41]} (62... Kd2 $5 63. Rc6 $8 Rd7 $11) 63. Ke3 {[%emt 0:00:02]} Bc4 {[%emt 0:00:10]} 64. Kd4 {[%emt 0:00:02]} g4 {[%emt 0:00:51]} 65. Rb1+ {[%emt 0:00:21]} Ka3 {[%emt 0:00:06]} 66. Ke5 {[%emt 0:00:18]} Rd7 {[%emt 0:00:14]} 67. Ke6 {[%emt 0:01:20]} (67. d6 $15) 67... Rd8 $17 {[%emt 0:00:00]} 68. Kxf5 $2 {[%emt 0:00:24][%mdl 8192]} (68. Ke5 $17) 68... Bd3+ {[%emt 0:00:27]} ({Inferior is} 68... Bxd5 69. Kxg4 (69. Rxb5 gxf3 70. gxf3 Bxf3 $15) 69... b4 70. Nxd5 Rxd5 71. Kxh4 $11) 0-1

[Event "III Menorca Open-A 2024"]
[Site "Ciutadella Menorca"]
[Date "2024.04.05"]
[Round "6.7"]
[White "Aravindh, Chithambaram VR."]
[Black "Balakrishnan, Praveen"]
[Result "1/2-1/2"]
[ECO "D02"]
[WhiteElo "2662"]
[BlackElo "2500"]
[Annotator "RC"]
[PlyCount "163"]
[EventDate "2024.04.02"]
[EventType "swiss"]
[EventCountry "ESP"]
[SourceTitle "playchess.com"]
[Source "ChessBase"]
[SourceQuality "1"]
[TimeControl "5400+30"]

1. Nf3 {[%emt 0:00:12]} Nf6 {[%emt 0:03:59]} 2. d4 {[%emt 0:00:09]} d5 {[%emt 0:00:06]} 3. Bf4 {[%emt 0:00:09]} c5 {[%emt 0:00:08]} 4. e3 {[%emt 0:00:07]} Nc6 {[%emt 0:00:08]} 5. Nbd2 {[%emt 0:00:09]} Bg4 {[%emt 0:00:08]} 6. c3 {[%emt 0:00:18]} e6 {[%emt 0:00:16]} 7. Qb3 {[%emt 0:00:07]} Qc8 {[%emt 0:00:32]} 8. Nh4 {[%emt 0:00:16]} Bh5 {[%emt 0:03:41]} 9. h3 {[%emt 0:00:07]} Be7 {[%emt 0:07:14]} 10. g4 {[%emt 0:00:09]} Bg6 {[%emt 0:00:31]} 11. Nxg6 {[%emt 0:00:09]} hxg6 {[%emt 0:00:05]} 12. Be2 {[%emt 0:00:09]} Qd7 {[%emt 0:10:37]} 13. dxc5 {[%emt 0:00:20]} Bxc5 {[%emt 0:01:48]} 14. O-O-O {[%emt 0:00:10]} Na5 {[%emt 0:13:17]} 15. Qc2 {[%emt 0:07:22]} Bd6 {[%emt 0:01:59]} 16. Bxd6 {[%emt 0:31:05]} Qxd6 {[%emt 0:00:29]} 17. Kb1 {[%emt 0:00:06]} O-O-O {[%emt 0:10:55]} 18. g5 {[%emt 0:07:00]} Ng8 {[%emt 0:07:20]} 19. c4 {[%emt 0:00:42]} Nc6 {[%emt 0:06:15]} 20. cxd5 {[%emt 0:18:19]} exd5 {[%emt 0:00:09]} 21. Ne4 {[%emt 0:00:09]} Qc7 {[%emt 0:05:21]} 22. Nc5 {[%emt 0:01:01]} Nge7 {[%emt 0:05:15]} 23. Qb3 {[%emt 0:00:41]} Qb6 {[%emt 0:02:04]} 24. Bg4+ {[%emt 0:01:09]} Kc7 {[%emt 0:04:43]} 25. Qc2 {[%emt 0:00:06]} Qb4 {[%emt 0:05:15]} 26. f3 {[%emt 0:07:31]} Kb8 {[%emt 0:04:25]} 27. Rd3 {[%emt 0:00:56]} Na5 {[%emt 0:01:05]} 28. Rhd1 {[%emt 0:14:28]} Ka8 {[%emt 0:01:12]} 29. a3 {[%emt 0:00:03]} Qb5 {[%emt 0:02:11]} 30. f4 {[%emt 0:00:03]} Nc4 {[%emt 0:00:53]} 31. Nb3 {[%emt 0:00:46]} f5 {[%emt 0:01:11]} 32. gxf6 {[%emt 0:03:31]} gxf6 {[%emt 0:00:01]} 33. Nd4 {[%emt 0:00:05]} Qa5 {[%emt 0:01:06]} 34. Rb3 {[%emt 0:07:43]} f5 {[%emt 0:00:47]} 35. Be2 {[%emt 0:00:02]} Rc8 {[%emt 0:01:17]} 36. Bxc4 {[%emt 0:00:25]} dxc4 {[%emt 0:00:15]} 37. Rb5 {[%emt 0:00:04]} Qa6 {[%emt 0:00:46]} 38. Rc1 {[%emt 0:01:19]} Rhd8 {[%emt 0:01:01]} 39. Re5 {[%emt 0:00:37]} Nc6 {[%emt 0:00:13]} 40. Rc5 {[%emt 0:00:48]} Nxd4 {[%emt 0:00:40]} 41. exd4 {[%emt 0:00:03]} Rxc5 {[%emt 0:00:19]} 42. dxc5 {[%emt 0:02:55]} Rd3 {[%emt 0:00:36]} 43. Re1 {[%emt 0:00:00]} Rd8 {[%emt 0:00:32]} 44. Rc1 {[%emt 0:00:00]} Qb5 {[%emt 0:01:01]} 45. Qxc4 {[%emt 0:00:00]} Qxc4 {[%emt 0:00:04]} 46. Rxc4 {[%emt 0:00:00]} Rd3 {[%emt 0:01:01]} 47. Rc3 {[%emt 0:00:00]} Rd4 {[%emt 0:00:22]} 48. Rf3 {[%emt 0:00:00]} Rc4 {[%emt 0:00:07]} 49. Rg3 {[%emt 0:00:07]} Rxf4 {[%emt 0:00:11]} 50. Rxg6 {[%emt 0:00:03]} Kb8 {[%emt 0:00:10]} 51. Ka2 {[%emt 0:01:05]} Rf3 {[%emt 0:00:33]} 52. Rh6 {[%emt 0:00:21]} Kc7 {[%emt 0:00:57]} 53. b4 {[%emt 0:00:07]} a6 {[%emt 0:00:19]} 54. Kb2 {[%emt 0:00:36]} Rg3 {[%emt 0:00:31]} 55. a4 {[%emt 0:01:51]} f4 {[%emt 0:00:04]} 56. h4 {[%emt 0:00:39]} f3 {[%emt 0:00:19]} 57. Rf6 {[%emt 0:00:03]} Rh3 {[%emt 0:00:43]} 58. b5 {[%emt 0:00:55]} axb5 {[%emt 0:00:09]} 59. axb5 {[%emt 0:00:03]} Rxh4 {[%emt 0:00:19]} 60. Kc3 {[%emt 0:00:12]} Ra4 {[%emt 0:01:44]} 61. Kb3 {[%emt 0:00:33]} Rh4 {[%emt 0:00:22]} 62. Rf7+ {[%emt 0:00:19]} Kc8 {[%emt 0:00:07]} 63. Rxf3 {[%emt 0:00:41]} Kc7 {[%emt 0:00:29]} 64. Rf7+ {[%emt 0:00:04]} Kc8 {[%emt 0:00:04]} 65. Kc3 {[%emt 0:00:19]} Rg4 {[%emt 0:00:06]} 66. Re7 {[%emt 0:01:46]} Rh4 {[%emt 0:00:04]} 67. Kd3 {[%emt 0:00:29]} Rb4 {[%emt 0:00:07]} 68. b6 {[%emt 0:02:47]} Rh4 {[%emt 0:00:58]} 69. Re4 {[%emt 0:00:00]} Rh1 {[%emt 0:01:11]} 70. Kc4 {[%emt 0:01:00]} Rc1+ {[%emt 0:00:21]} 71. Kb5 {[%emt 0:00:00]} Rb1+ {[%emt 0:00:10]} 72. Rb4 {[%emt 0:00:00]} Rh1 {[%emt 0:00:28]} 73. Rg4 {[%emt 0:00:00]} Rb1+ {[%emt 0:00:05]} 74. Kc4 {[%emt 0:00:00]} Rc1+ {[%emt 0:00:04]} 75. Kd5 {[%emt 0:00:00]} Rd1+ {[%emt 0:00:04]} 76. Ke5 {[%emt 0:00:00]} Re1+ {[%emt 0:00:09]} 77. Kd4 {[%emt 0:00:00]} Rd1+ {[%emt 0:00:03]} 78. Ke4 {[%emt 0:00:06]} Re1+ {[%emt 0:00:03]} 79. Kd3 {[%emt 0:00:05]} Rd1+ {[%emt 0:00:04]} 80. Ke3 {[%emt 0:00:53]} Re1+ {[%emt 0:00:03]} 81. Kd2 {[%emt 0:00:04]} Re5 {[%emt 0:00:21]} 82. Rg8+ {[%emt 0:00:19]} 1/2-1/2